fUST/lending_fUST_20250918
["ID","MTS","AMOUNT","RATE_DAILY","PERIOD"]
[386057249,1758205839369,-151.0,0.00022933,7]
[386057250,1758205839379,-151.0,0.00022933,7]
[386057251,1758205839388,-151.357129,0.00022933,7]
[386057253,1758205839397,-226.130982,0.00022933,7]
[386057255,1758205839408,-480.0,0.00022933,3]
[386057256,1758205839417,-500.0,0.00022964,3]
[386057257,1758205839426,-500.0,0.00022965,3]
[386057258,1758205839435,-158.40613644,0.0002297,3]
[386057259,1758205839444,-165.49792862,0.0002297,3]
[386057260,1758205839453,-480.0,0.0002297,3]
[386057261,1758205839463,-480.0,0.0002297,3]
[386057262,1758205839473,-480.0,0.0002297,3]
[386057263,1758205839482,-480.0,0.0002297,3]
[386057264,1758205839492,-289.53403323,0.0002297,3]
[386057265,1758205839501,-485.79311304,0.0002297,3]
[386057266,1758205839511,-485.69151998,0.0002297,3]
[386057267,1758205839520,-480.0,0.0002297,3]
[386057268,1758205839531,-480.0,0.0002297,3]
[386057269,1758205839543,-480.0,0.0002297,3]
[386057270,1758205839552,-617.54172307,0.0002297,3]
[386057271,1758205839562,-480.0,0.0002297,3]
[386057272,1758205839572,-480.0,0.0002297,3]
[386057273,1758205839583,-480.0,0.0002297,3]
[386057274,1758205839592,-480.0,0.0002297,3]
[386057275,1758205839602,-503.30145604,0.0002297,3]
[386057276,1758205839611,-480.0,0.0002297,3]
[386057277,1758205839622,-486.58613886,0.0002297,3]
[386057278,1758205839632,-480.0,0.0002297,3]
[386057279,1758205839641,-480.0,0.0002297,3]
[386057280,1758205839651,-480.0,0.0002297,3]
[386057281,1758205839661,-480.0,0.0002297,3]
[386057282,1758205839671,-480.0,0.0002297,3]
[386057283,1758205839680,-500.0,0.0002297,3]
[386057284,1758205839690,-480.0,0.0002297,3]
[386057285,1758205839699,-480.0,0.0002297,3]
[386057286,1758205839708,-480.0,0.0002297,3]
[386057287,1758205839718,-470.23299335,0.0002297,3]
[386057288,1758205839727,-480.0,0.0002297,3]
[386057289,1758205839736,-480.0,0.0002297,3]
[386057290,1758205839746,-480.0,0.0002297,3]
[386057291,1758205839755,-480.0,0.0002297,3]
[386057292,1758205839765,-480.0,0.0002297,3]
[386057293,1758205839775,-480.0,0.0002297,3]
[386057294,1758205839784,-480.0,0.0002297,3]
[386057295,1758205839793,-480.0,0.0002297,3]
[386057296,1758205839803,-480.0,0.0002297,3]
[386057297,1758205839812,-480.0,0.0002297,3]
[386057298,1758205839821,-480.0,0.0002297,3]
[386057299,1758205839831,-482.93349257,0.0002297,3]
[386057300,1758205839840,-480.0,0.0002297,3]
[386057301,1758205839849,-480.0,0.0002297,3]
[386057302,1758205839859,-480.0,0.0002297,3]
[386057303,1758205839868,-482.54900974,0.0002297,3]
[386057304,1758205839877,-480.0,0.0002297,3]
[386057305,1758205839886,-483.23740924,0.0002297,3]
[386057306,1758205839895,-480.0,0.0002297,3]
[386057307,1758205839905,-482.03354135,0.0002297,3]
[386057308,1758205839914,-483.36744116,0.0002297,3]
[386057309,1758205839923,-480.0,0.0002297,3]
[386057310,1758205839933,-488.04202283,0.0002297,3]
[386057311,1758205839943,-421.87421739,0.0002297,3]
[386057312,1758205839952,-480.0,0.0002297,3]
[386057313,1758205839962,-1570.16,0.0002297,3]
[386057314,1758205839971,-480.0,0.0002297,3]
[386057315,1758205839980,-480.0,0.0002297,3]
[386057316,1758205839989,-480.0,0.0002297,3]
[386057317,1758205839999,-480.0,0.0002297,3]
[386057318,1758205840008,-495.61990343,0.0002297,3]
[386057319,1758205840018,-480.0,0.0002297,3]
[386057320,1758205840027,-151.0,0.0002297,7]
[386057321,1758205840038,-196.378904,0.0002297,7]
[386057322,1758205840047,-480.0,0.0002297,3]
[386057323,1758205840056,-480.0,0.0002297,3]
[386057325,1758205840067,-480.0,0.0002297,3]
[386057327,1758205840076,-151.0,0.0002297,7]
[386057329,1758205840086,-151.0,0.0002297,7]
[386057331,1758205840095,-480.0,0.0002297,3]
[386057332,1758205840104,-181.526376,0.0002297,7]
[386057333,1758205840113,-481.33761272,0.0002297,3]
[386057334,1758205840122,-480.0,0.0002297,3]
[386057335,1758205840131,-480.0,0.0002297,3]
[386057336,1758205840140,-480.0,0.0002297,3]
[386057337,1758205840150,-163.049832,0.0002297,7]
[386057338,1758205840159,-480.0,0.0002297,3]
[386057340,1758205840169,-480.0,0.0002297,3]
[386057342,1758205840178,-480.0,0.0002297,3]
[386057344,1758205840188,-480.0,0.0002297,3]
[386057345,1758205840197,-822.79,0.0002297,3]
[386057347,1758205840206,-480.0,0.0002297,3]
[386057348,1758205840216,-480.0,0.0002297,3]
[386057349,1758205840225,-480.0,0.0002297,3]
[386057350,1758205840234,-494.58771153,0.0002297,3]
[386057352,1758205840244,-2395.09,0.0002297,3]
[386057354,1758205840253,-480.0,0.0002297,3]
[386057355,1758205840262,-480.0,0.0002297,3]
[386057356,1758205840272,-480.0,0.0002297,3]
[386057357,1758205840283,-480.0,0.0002297,3]
[386057358,1758205840292,-480.35894586,0.0002297,3]
[386057359,1758205840302,-480.92284189,0.0002297,3]
[386057361,1758205840312,-481.65232734,0.0002297,3]
[386057363,1758205840321,-480.0,0.0002297,3]
[386057365,1758205840331,-480.0,0.0002297,3]
[386057367,1758205840340,-500.0,0.0002297,3]
[386057369,1758205840350,-480.0,0.0002297,3]
[386057371,1758205840359,-480.71256537,0.0002297,3]
[386057373,1758205840369,-480.0,0.0002297,3]
[386057375,1758205840378,-480.0,0.0002297,3]
[386057377,1758205840388,-591.34226107,0.0002297,3]
[386057379,1758205840397,-480.0,0.0002297,3]
[386057381,1758205840406,-480.0,0.0002297,3]
[386057383,1758205840416,-557.08766036,0.0002297,3]
[386057385,1758205840425,-151.0,0.0002297,7]
[386057395,1758205840515,-480.0,0.0002297,3]
[386057397,1758205840526,-151.0,0.0002297,7]
[386057399,1758205840535,-480.0,0.0002297,3]
[386057400,1758205840549,-480.0,0.0002297,3]
[386057401,1758205840558,-151.0,0.0002297,7]
[386057402,1758205840568,-480.0,0.0002297,3]
[386057403,1758205840578,-480.0,0.0002297,3]
[386057404,1758205840588,-480.0,0.0002297,3]
[386057405,1758205840598,-155.625,0.00022971,2]
[386057406,1758205840607,-480.0,0.00022972,5]
[386057407,1758205840617,-500.0,0.00022972,3]
[386057408,1758205840627,-500.0,0.00022972,3]
[386057409,1758205840636,-218.64,0.00022972,3]
[386057410,1758205840646,-631.57035006,0.00022973,2]
[386057411,1758205840656,-500.65849376,0.00022973,2]
[386057412,1758205840666,-500.0,0.00022973,2]
[386057413,1758205840675,-500.0,0.00022973,2]
[386057414,1758205840685,-500.0,0.00022973,2]
[386057415,1758205840695,-500.0,0.00022973,2]
[386057416,1758205840705,-639.79050306,0.00022973,2]
[386057417,1758205840714,-500.0,0.00022973,2]
[386057418,1758205840723,-579.54022766,0.00022973,2]
[386057419,1758205840733,-500.0,0.00022973,2]
[386057420,1758205840743,-500.0,0.00022973,2]
[386057421,1758205840752,-500.0,0.00022973,2]
[386057422,1758205840761,-500.0,0.00022973,2]
[386057423,1758205840771,-500.0,0.00022973,2]
[386057424,1758205840782,-500.0,0.00022973,2]
[386057425,1758205840793,-500.0,0.00022973,2]
[386057426,1758205840802,-500.0,0.00022973,2]
[386057427,1758205840811,-500.0,0.00022973,2]
[386057428,1758205840821,-500.0,0.00022973,2]
[386057429,1758205840831,-378.36037636,0.00022973,2]
[386057430,1758205840840,-500.0,0.00022973,2]
[386057431,1758205840849,-500.0,0.00022973,2]
[386057432,1758205840859,-500.0,0.00022973,2]
[386057433,1758205840868,-501.2529715,0.00022973,2]
[386057434,1758205840878,-500.0,0.00022973,2]
[386057435,1758205840887,-500.0,0.00022973,2]
[386057436,1758205840896,-171.55151489,0.00022973,2]
[386057437,1758205840906,-500.0,0.00022973,2]
[386057438,1758205840916,-336.77033214,0.00022973,2]
[386057439,1758205840926,-182.3758288,0.00022973,2]
[386057440,1758205840935,-500.0,0.00022973,2]
[386057441,1758205840945,-500.0,0.00022973,2]
[386057442,1758205840955,-500.0,0.00022973,2]
[386057443,1758205840968,-393.95063335,0.00022973,2]
[386057444,1758205840978,-500.0,0.00022973,2]
[386057445,1758205840987,-500.0,0.00022973,2]
[386057446,1758205840997,-501.57485392,0.00022973,2]
[386057447,1758205841006,-501.92314477,0.00022973,2]
[386057448,1758205841016,-484.23824808,0.00022973,2]
[386057449,1758205841026,-500.0,0.00022973,2]
[386057450,1758205841035,-500.0,0.00022973,2]
[386057451,1758205841045,-500.0,0.00022973,2]
[386057452,1758205841054,-500.0,0.00022973,2]
[386057453,1758205841064,-501.16452576,0.00022973,2]
[386057454,1758205841073,-449.58007303,0.00022973,2]
[386057455,1758205841082,-500.0,0.00022973,2]
[386057456,1758205841092,-500.0,0.00022973,2]
[386057457,1758205841103,-506.15894426,0.00022973,2]
[386057458,1758205841113,-500.0,0.00022973,2]
[386057459,1758205841122,-500.0,0.00022973,2]
[386057460,1758205841131,-500.0,0.00022973,2]
[386057461,1758205841141,-500.0,0.00022973,2]
[386057462,1758205841150,-500.0,0.00022973,2]
[386057463,1758205841160,-500.0,0.00022973,2]
[386057464,1758205841170,-501.26435552,0.00022973,2]
[386057465,1758205841180,-500.0,0.00022973,2]
[386057466,1758205841189,-561.00677,0.00022973,2]
[386057467,1758205841199,-500.0,0.00022973,2]
[386057468,1758205841208,-501.01075172,0.00022973,2]
[386057469,1758205841217,-159.0593294,0.00022973,2]
[386057470,1758205841226,-161.17147029,0.00022973,2]
[386057471,1758205841236,-500.0,0.00022973,2]
[386057472,1758205841245,-151.0,0.00022973,7]
[386057473,1758205841254,-151.0,0.00022973,7]
[386057474,1758205841265,-151.0,0.00022973,7]
[386057475,1758205841274,-151.0,0.00022973,7]
[386057476,1758205841283,-151.0,0.00022973,7]
[386057477,1758205841293,-151.0,0.00022973,7]
[386057478,1758205841302,-151.0,0.00022973,7]
[386057479,1758205841311,-500.0,0.00022976,2]
[386057480,1758205841321,-500.0,0.00022976,2]
[386057481,1758205841330,-594.952666,0.00022976,2]
[386057482,1758205841340,-500.0,0.00022976,2]
[386057483,1758205841349,-500.0,0.00022976,2]
[386057484,1758205841360,-151.0,0.00022976,2]
[386057485,1758205841369,-151.0,0.00022976,2]
[386057486,1758205841378,-151.0,0.00022976,2]
[386057487,1758205841387,-153.13209788,0.00022976,2]
[386057488,1758205841397,-953.0,0.00022979,3]
[386057489,1758205841406,-476.5,0.00022979,3]
[386057490,1758205841416,-238.25,0.00022979,3]
[386057491,1758205841425,-714.78,0.00022979,3]
[386057492,1758205841435,-160.0,0.00022986,2]
[386057493,1758205841444,-200.0,0.00022987,2]
[386057494,1758205841454,-160.0,0.00022987,2]
[386057495,1758205841463,-1694.54322664,0.00022988,2]
[386057496,1758205841472,-435171.7938186,0.00022988,7]
[386057497,1758205841482,-500.0,0.00022988,3]
[386057498,1758205841492,-524.21865693,0.00022988,3]
[386057499,1758205841501,-151.0,0.00022988,7]
[386057500,1758205841511,-151.0,0.00022988,7]
[386057501,1758205841520,-151.0,0.00022988,7]
[386057502,1758205841531,-171.39884,0.00022988,7]
[386057503,1758205841544,-151.0,0.00022988,7]
[386057504,1758205841553,-151.0,0.00022988,7]
[386057505,1758205841564,-151.0,0.00022988,7]
[386057506,1758205841573,-200.0,0.00022988,2]
[386057507,1758205841583,-210.2732357,0.00022989,2]
[386057508,1758205841594,-320.0,0.00022989,3]
[386057509,1758205841604,-482.56951878,0.00022989,3]
[386057510,1758205841615,-481.87420238,0.00022989,3]
[386057511,1758205841624,-480.0,0.00022989,3]
[386057512,1758205841634,-480.0,0.00022989,3]
[386057513,1758205841644,-480.0,0.00022989,3]
[386057514,1758205841653,-480.0,0.00022989,3]
[386057515,1758205841663,-480.0,0.00022989,3]
[386057516,1758205841672,-480.0,0.00022989,3]
[386057517,1758205841682,-480.0,0.00022989,3]
[386057518,1758205841692,-480.0,0.00022989,3]
[386057519,1758205841701,-480.0,0.00022989,3]
[386057520,1758205841712,-480.0,0.00022989,3]
[386057521,1758205841722,-480.0,0.00022989,3]
[386057522,1758205841731,-480.0,0.00022989,3]
[386057523,1758205841741,-480.0,0.00022989,3]
[386057524,1758205841751,-480.0,0.00022989,3]
[386057525,1758205841760,-480.0,0.00022989,3]
[386057526,1758205841771,-480.0,0.00022989,3]
[386057527,1758205841784,-480.0,0.00022989,3]
[386057528,1758205841793,-480.0,0.00022989,3]
[386057529,1758205841803,-483.6475554,0.00022989,3]
[386057530,1758205841812,-482.7393619,0.00022989,3]
[386057531,1758205841821,-480.0,0.00022989,3]
[386057532,1758205841830,-480.0,0.00022989,3]
[386057533,1758205841840,-486.00650065,0.00022989,3]
[386057534,1758205841849,-480.0,0.00022989,3]
[386057535,1758205841858,-480.0,0.00022989,3]
[386057536,1758205841867,-480.0,0.00022989,3]
[386057537,1758205841877,-480.0,0.00022989,3]
[386057538,1758205841886,-480.0,0.00022989,3]
[386057539,1758205841895,-480.0,0.00022989,3]
[386057540,1758205841905,-485.54083943,0.00022989,3]
[386057541,1758205841914,-480.0,0.00022989,3]
[386057542,1758205841924,-480.0,0.00022989,3]
[386057543,1758205841933,-479.4,0.00022989,3]
[386057544,1758205841943,-480.0,0.00022989,3]
[386057545,1758205841952,-480.0,0.00022989,3]
[386057546,1758205841962,-473.86212997,0.00022989,3]
[386057547,1758205841971,-480.0,0.00022989,3]
[386057548,1758205841980,-480.0,0.00022989,3]
[386057549,1758205841990,-480.0,0.00022989,3]
[386057550,1758205841999,-151.765916,0.00022989,7]
[386057551,1758205842009,-480.0,0.00022989,3]
[386057552,1758205842018,-480.0,0.00022989,3]
[386057553,1758205842030,-480.0,0.00022989,3]
[386057554,1758205842039,-480.0,0.00022989,3]
[386057555,1758205842049,-194.332647,0.00022989,7]
[386057556,1758205842059,-151.0,0.00022989,7]
[386057557,1758205842069,-159.079139,0.00022989,7]
[386057558,1758205842078,-480.0,0.00022989,3]
[386057559,1758205842088,-480.0,0.00022989,3]
[386057560,1758205842098,-484.27882036,0.00022989,3]
[386057561,1758205842178,-153.537344,0.00022989,7]
[386057562,1758205842188,-150.99,0.00022989,3]
[386057563,1758205842197,-482.02930181,0.00022989,3]
[386057564,1758205842207,-483.74065757,0.00022989,3]
[386057565,1758205842217,-480.0,0.00022989,3]
[386057566,1758205842227,-480.0,0.00022989,3]
[386057567,1758205842236,-480.0,0.00022989,3]
[386057568,1758205842245,-151.0,0.00022989,7]
[386057569,1758205842255,-154.178752,0.00022989,7]
[386057570,1758205842264,-486.97946458,0.00022989,3]
[386057571,1758205842274,-480.0,0.00022989,3]
[386057572,1758205842284,-484.34659243,0.00022989,3]
[386057573,1758205842294,-480.0,0.00022989,3]
[386057574,1758205842303,-349.45317395,0.00022989,3]
[386057575,1758205842313,-151.0,0.00022989,7]
[386057576,1758205842322,-152.926508,0.00022989,7]
[386057577,1758205842332,-480.0,0.00022989,3]
[386057578,1758205842341,-491.73527628,0.00022989,3]
[386057579,1758205842351,-482.75843102,0.00022989,3]
[386057580,1758205842360,-483.0992426,0.00022989,3]
[386057581,1758205842370,-480.0,0.00022989,3]
[386057582,1758205842379,-485.63829599,0.00022989,3]
[386057583,1758205842388,-480.0,0.00022989,3]
[386057584,1758205842398,-151.0,0.00022989,7]
[386057585,1758205842408,-153.672579,0.00022989,7]
[386057586,1758205842418,-480.0,0.00022989,3]
[386057587,1758205842428,-480.0,0.00022989,3]
[386057588,1758205842437,-151.0,0.00022989,7]
[386057589,1758205842447,-482.74022993,0.00022989,3]
[386057590,1758205842457,-480.0,0.00022989,3]
[386057591,1758205842466,-561.25912951,0.00022989,3]
[386057592,1758205842476,-480.0,0.00022989,3]
[386057594,1758205842485,-480.0,0.00022989,3]
[386057595,1758205842495,-483.77336563,0.00022989,3]
[386057597,1758205842504,-480.0,0.00022989,3]
[386057598,1758205842513,-480.0,0.00022989,3]
[386057599,1758205842523,-480.0,0.00022989,3]
[386057601,1758205842534,-480.0,0.00022989,3]
[386057603,1758205842546,-480.0,0.00022989,3]
[386057604,1758205842556,-480.0,0.00022989,3]
[386057605,1758205842570,-480.0,0.00022989,3]
[386057606,1758205842580,-480.0,0.00022989,3]
[386057607,1758205842589,-480.0,0.00022989,3]
[386057608,1758205842606,-480.0,0.00022989,3]
[386057609,1758205842615,-483.89270096,0.00022989,3]
[386057610,1758205842625,-480.0,0.00022989,3]
[386057611,1758205842634,-483.75788683,0.00022989,3]
[386057612,1758205842643,-480.0,0.00022989,3]
[386057613,1758205842653,-151.0,0.00022989,7]
[386057615,1758205842662,-480.0,0.00022989,3]
[386057617,1758205842677,-480.0,0.00022989,3]
[386057618,1758205842686,-480.0,0.00022989,3]
[386057619,1758205842695,-480.0,0.00022989,3]
[386057620,1758205842704,-480.0,0.00022989,3]
[386057621,1758205842714,-151.0,0.00022989,7]
[386057622,1758205842723,-480.0,0.00022989,3]
[386057623,1758205842733,-151.0,0.00022989,7]
[386057624,1758205842743,-480.0,0.00022989,3]
[386057626,1758205842752,-151.0,0.00022989,7]
[386057628,1758205842762,-480.0,0.00022989,3]
[386057629,1758205842772,-480.0,0.00022989,3]
[386057630,1758205842782,-480.0,0.00022989,3]
[386057631,1758205842792,-480.0,0.00022989,3]
[386057632,1758205842801,-480.0,0.00022989,3]
[386057633,1758205842811,-480.0,0.00022989,3]
[386057635,1758205842820,-151.0,0.00022989,7]
[386057637,1758205842829,-480.0,0.00022989,3]
[386057639,1758205842839,-151.0,0.00022989,7]
[386057640,1758205842848,-151.0,0.00022989,7]
[386057641,1758205842857,-1000.0,0.00022989,3]
[386057642,1758205842867,-480.0,0.00022989,3]
[386057643,1758205842877,-480.0,0.00022989,3]
[386057644,1758205842886,-151.0,0.00022989,7]
[386057645,1758205842895,-151.0,0.00022989,7]
[386057646,1758205842905,-480.0,0.00022989,3]
[386057648,1758205842914,-500.0,0.00022989,3]
[386057650,1758205842923,-489.48140354,0.00022989,3]
[386057652,1758205842932,-480.0,0.00022989,3]
[386057654,1758205842942,-480.0,0.00022989,3]
[386057656,1758205842951,-480.0,0.00022989,3]
[386057657,1758205842961,-480.0,0.00022989,3]
[386057659,1758205842970,-480.0,0.00022989,3]
[386057661,1758205842979,-480.0,0.00022989,3]
[386057663,1758205842989,-500.0,0.00022989,3]
[386057665,1758205842998,-500.0,0.00022989,3]
[386057667,1758205843007,-500.0,0.00022989,3]
[386057669,1758205843017,-500.0,0.00022989,3]
[386057671,1758205843027,-500.0,0.00022989,3]
[386057673,1758205843037,-480.0,0.00022989,3]
[386057675,1758205843047,-480.0,0.00022989,3]
[386057678,1758205843056,-480.0,0.00022989,3]
[386057681,1758205843067,-482.9095256,0.00022989,3]
[386057684,1758205843076,-151.0,0.00022989,7]
[386057686,1758205843085,-480.0,0.00022989,3]
[386057688,1758205843095,-151.0,0.00022989,7]
[386057690,1758205843104,-480.0,0.00022989,3]
[386057693,1758205843114,-480.0,0.00022989,3]
[386057695,1758205843124,-480.0,0.00022989,3]
[386057697,1758205843134,-480.0,0.00022989,3]
[386057699,1758205843143,-485.7182503,0.00022989,3]
[386057701,1758205843152,-480.0,0.00022989,3]
[386057703,1758205843161,-480.0,0.00022989,3]
[386057705,1758205843171,-480.0,0.00022989,3]
[386057707,1758205843180,-465.33851528,0.00022989,3]
[386057709,1758205843189,-481.38581957,0.00022989,3]
[386057711,1758205843199,-480.0,0.00022989,3]
[386057713,1758205843208,-481.23547581,0.00022989,3]
[386057715,1758205843219,-480.0,0.00022989,3]
[386057716,1758205843229,-480.0,0.00022989,3]
[386057717,1758205843239,-314.31610826,0.00022989,3]
[386057718,1758205843249,-480.0,0.00022989,3]
[386057720,1758205843258,-480.0,0.00022989,3]
[386057722,1758205843267,-480.39868545,0.00022989,3]
[386057724,1758205843277,-480.0,0.00022989,3]
[386057726,1758205843287,-480.0,0.00022989,3]
[386057728,1758205843295,-480.0,0.00022989,3]
[386057730,1758205843305,-481.36680308,0.00022989,3]
[386057732,1758205843314,-480.64165249,0.00022989,3]
[386057734,1758205843323,-480.0,0.00022989,3]
[386057735,1758205843333,-480.0,0.00022989,3]
[386057738,1758205843343,-151.0,0.00022989,7]
[386057739,1758205843352,-480.0,0.00022989,3]
[386057742,1758205843362,-480.0,0.00022989,3]
[386057743,1758205843371,-480.0,0.00022989,3]
[386057745,1758205843381,-152.022354,0.00022989,7]
[386057747,1758205843391,-191.50694464,0.00022989,3]
[386057749,1758205843401,-480.0,0.00022989,3]
[386057751,1758205843410,-480.0,0.00022989,3]
[386057753,1758205843420,-480.0,0.00022989,3]
[386057756,1758205843429,-480.0,0.00022989,3]
[386057760,1758205843438,-481.40984418,0.00022989,3]
[386057763,1758205843448,-480.0,0.00022989,3]
[386057767,1758205843457,-480.0,0.00022989,3]
[386057771,1758205843466,-480.0,0.00022989,3]
[386057774,1758205843476,-480.0,0.00022989,3]
[386057776,1758205843485,-480.0,0.00022989,3]
[386057778,1758205843495,-480.0,0.00022989,3]
[386057780,1758205843504,-480.0,0.00022989,3]
[386057782,1758205843515,-480.0,0.00022989,3]
[386057784,1758205843524,-480.0,0.00022989,3]
[386057786,1758205843534,-480.0,0.00022989,3]
[386057788,1758205843547,-480.0,0.00022989,3]
[386057790,1758205843557,-480.0,0.00022989,3]
[386057792,1758205843566,-480.0,0.00022989,3]
[386057794,1758205843575,-480.0,0.00022989,3]
[386057796,1758205843586,-480.0,0.00022989,3]
[386057798,1758205843595,-480.0,0.00022989,3]
[386057800,1758205843605,-480.0,0.00022989,3]
[386057802,1758205843614,-151.0,0.00022989,7]
[386057804,1758205843624,-151.0,0.00022989,7]
[386057806,1758205843633,-480.0,0.00022989,3]
[386057808,1758205843642,-480.0,0.00022989,3]
[386057810,1758205843652,-480.0,0.00022989,3]
[386057820,1758205843729,-480.0,0.00022989,3]
[386057822,1758205843740,-480.0,0.00022989,3]
[386057824,1758205843749,-480.0,0.00022989,3]
[386057826,1758205843758,-480.0,0.00022989,3]
[386057828,1758205843768,-480.0,0.00022989,3]
[386057830,1758205843777,-480.0,0.00022989,3]
[386057832,1758205843787,-480.0,0.00022989,3]
[386057834,1758205843796,-480.0,0.00022989,3]
[386057836,1758205843807,-480.0,0.00022989,3]
[386057838,1758205843817,-480.0,0.00022989,3]
[386057840,1758205843826,-480.0,0.00022989,3]
[386057841,1758205843835,-519.57839725,0.00022989,3]
[386057843,1758205843844,-480.0,0.00022989,3]
[386057845,1758205843854,-480.0,0.00022989,3]
[386057847,1758205843864,-480.0,0.00022989,3]
[386057849,1758205843873,-480.0,0.00022989,3]
[386057851,1758205843883,-443.56388385,0.00022989,3]
[386057853,1758205843892,-896.94,0.00022989,3]
[386057855,1758205843901,-480.0,0.00022989,3]
[386057857,1758205843911,-480.0,0.00022989,3]
[386057859,1758205843920,-480.0,0.00022989,3]
[386057861,1758205843930,-482.1936996,0.00022989,3]
[386057864,1758205843939,-480.0,0.00022989,3]
[386057865,1758205843948,-480.0,0.00022989,3]
[386057868,1758205843958,-480.0,0.00022989,3]
[386057870,1758205843967,-480.0,0.00022989,3]
[386057872,1758205843977,-481.96166855,0.00022989,3]
[386057874,1758205843987,-481.56089742,0.00022989,3]
[386057876,1758205843996,-485.13310683,0.00022989,3]
[386057878,1758205844006,-480.0,0.00022989,3]
[386057879,1758205844015,-481.55023838,0.00022989,3]
[386057882,1758205844025,-480.0,0.00022989,3]
[386057884,1758205844036,-480.0,0.00022989,3]
[386057886,1758205844046,-480.0,0.00022989,3]
[386057888,1758205844056,-500.0,0.00022989,3]
[386057890,1758205844066,-480.0,0.00022989,3]
[386057892,1758205844075,-480.0,0.00022989,3]
[386057894,1758205844085,-480.0,0.00022989,3]
[386057896,1758205844094,-448.22708533,0.00022989,3]
[386057898,1758205844104,-1000.0,0.00022989,2]
[386057900,1758205844113,-1000.0,0.00022989,2]
[386057902,1758205844123,-480.0,0.00022989,3]
[386057904,1758205844133,-1000.0,0.00022989,2]
[386057906,1758205844143,-1000.0,0.00022989,2]
[386057908,1758205844152,-883.736595,0.00022989,2]
[386057910,1758205844161,-480.0,0.00022989,3]
[386057912,1758205844171,-480.0,0.00022989,3]
[386057914,1758205844180,-480.0,0.00022989,3]
[386057916,1758205844189,-480.99556131,0.00022989,3]
[386057918,1758205844198,-480.0,0.00022989,3]
[386057920,1758205844208,-481.65322293,0.00022989,3]
[386057922,1758205844217,-480.0,0.00022989,3]
[386057924,1758205844226,-480.0,0.00022989,3]
[386057926,1758205844235,-396.3320788,0.00022989,3]
[386057927,1758205844245,-480.0,0.00022989,3]
[386057929,1758205844254,-491.4588592,0.00022989,3]
[386057931,1758205844264,-480.0,0.00022989,3]
[386057934,1758205844273,-480.0,0.00022989,3]
[386057936,1758205844283,-480.0,0.00022989,3]
[386057937,1758205844293,-480.0,0.00022989,3]
[386057939,1758205844302,-4706.26,0.00022989,3]
[386057942,1758205844312,-480.0,0.00022989,3]
[386057944,1758205844322,-480.0,0.00022989,3]
[386057945,1758205844331,-480.0,0.00022989,3]
[386057948,1758205844341,-480.0,0.00022989,3]
[386057949,1758205844351,-480.0,0.00022989,3]
[386057951,1758205844361,-480.0,0.00022989,3]
[386057953,1758205844372,-606.31,0.00022989,3]
[386057955,1758205844382,-480.0,0.00022989,3]
[386057957,1758205844393,-480.0,0.00022989,3]
[386057959,1758205844404,-480.0,0.00022989,3]